fUSD/lending_fUSD_20251223
["ID","MTS","AMOUNT","RATE_DAILY","PERIOD"]
[399559542,1766487407958,-601.92134331,0.00044931,120]
[399559543,1766487407998,-500.0,0.00044931,120]
[399559544,1766487408038,-500.0,0.00044931,120]
[399559545,1766487408083,-500.0,0.00044931,120]
[399559546,1766487408124,-500.0,0.00044931,120]
[399559547,1766487408166,-493.80833191,0.00044931,120]
[399559548,1766487408208,-500.0,0.00044931,120]
[399559549,1766487408252,-500.0,0.00044931,120]
[399559550,1766487408295,-452.8061651,0.00044931,120]
[399559551,1766487408338,-500.0,0.00044931,120]
[399559552,1766487408380,-580.79468667,0.00044931,120]
[399559553,1766487408424,-500.0,0.00044931,120]
[399559554,1766487408465,-500.0,0.00044931,120]
[399559555,1766487408506,-219.99375655,0.00044931,120]
[399559556,1766487408545,-500.0,0.00044931,120]
[399559557,1766487408583,-500.0,0.00044931,120]
[399559558,1766487408623,-500.0,0.00044931,120]
[399559559,1766487408663,-500.0,0.00044931,120]
[399559560,1766487408702,-500.0,0.00044931,120]
[399559561,1766487408743,-500.0,0.00044931,120]
[399559562,1766487408781,-500.0,0.00044931,120]
[399559563,1766487408819,-500.0,0.00044931,120]
[399559564,1766487408856,-500.0,0.00044931,120]
[399559565,1766487408893,-500.0,0.00044931,120]
[399559566,1766487408933,-500.0,0.00044931,120]
[399559567,1766487408973,-500.0,0.00044931,120]
[399559568,1766487409012,-500.0,0.00044931,120]
[399559569,1766487409050,-500.0,0.00044931,120]
[399559570,1766487409095,-535.60402482,0.00044931,120]
[399559571,1766487409137,-500.0,0.00044931,120]
[399559572,1766487409177,-566.29419805,0.00044931,120]
[399559573,1766487409224,-551.51959018,0.00044931,120]
[399559574,1766487409284,-504.04263361,0.00044931,120]
[399559575,1766487409327,-479.92279028,0.00044931,120]
[399559576,1766487409367,-213.30669816,0.00044931,120]
[399559577,1766487409406,-500.0,0.00044931,120]
[399559578,1766487409447,-500.0,0.00044931,120]
[399559579,1766487409501,-1723.75,0.00044931,120]
[399559580,1766487409543,-500.0,0.00044931,120]
[399559581,1766487409583,-500.0,0.00044931,120]
[399559582,1766487409622,-500.0,0.00044931,120]
[399559583,1766487409660,-500.0,0.00044931,120]
[399559584,1766487409704,-524.92,0.00044931,120]
[399559585,1766487409745,-500.0,0.00044931,120]
[399559586,1766487409783,-500.0,0.00044931,120]
[399559587,1766487409820,-561.95528805,0.00044931,120]
[399559588,1766487409858,-906.89,0.00044931,60]
[399559589,1766487409896,-542.37352807,0.00044931,120]
[399559590,1766487409934,-500.0,0.00044931,120]
[399559591,1766487409972,-545.88,0.00044931,120]
[399559592,1766487410011,-500.0,0.00044931,120]
[399559593,1766487410050,-500.0,0.00044931,120]
[399559594,1766487410097,-500.0,0.00044931,120]
[399559595,1766487410140,-500.0,0.00044931,120]
[399559596,1766487410181,-386.86439071,0.00044931,120]
[399559597,1766487410224,-500.0,0.00044931,120]
[399559598,1766487410265,-411.92931985,0.00044931,120]
[399559599,1766487410307,-1273.67,0.00044931,120]
[399559600,1766487410346,-500.0,0.00044931,120]
[399559601,1766487410387,-500.0,0.00044931,120]
[399559602,1766487410427,-500.0,0.00044931,120]
[399559603,1766487410474,-500.0,0.00044931,120]
[399559604,1766487410512,-500.0,0.00044931,120]
[399559605,1766487410549,-500.0,0.00044931,120]
[399559606,1766487410586,-500.0,0.00044931,120]
[399559607,1766487410624,-500.0,0.00044931,120]
[399559608,1766487410662,-500.0,0.00044931,120]
[399559609,1766487411062,-616.17,0.00044931,120]
[399559610,1766487411106,-500.0,0.00044931,120]
[399559611,1766487411148,-779.23,0.00044931,120]
[399559612,1766487411188,-500.0,0.00044931,120]
[399559613,1766487411233,-760.79,0.00044931,120]
[399559614,1766487411276,-179.22384136,0.00044931,120]
[399559615,1766487411319,-500.0,0.00044931,120]
[399559616,1766487411360,-500.0,0.00044931,120]
[399559617,1766487411401,-500.0,0.00044931,120]
[399559618,1766487411443,-500.0,0.00044931,120]
[399559619,1766487411482,-500.0,0.00044931,120]
[399559620,1766487411521,-500.0,0.00044931,120]
[399559621,1766487411558,-500.0,0.00044931,120]
[399559622,1766487411594,-1543.48,0.00044931,120]
[399559623,1766487411630,-680.4,0.00044931,120]
[399559624,1766487411667,-492.75242107,0.00044931,120]
[399559625,1766487411703,-500.0,0.00044931,120]
[399559626,1766487411739,-538.23950137,0.00044931,120]
[399559627,1766487411775,-500.0,0.00044931,120]
[399559628,1766487411812,-500.0,0.00044931,120]
[399559629,1766487411848,-1112.14,0.00044931,120]
[399559630,1766487411884,-500.0,0.00044931,120]
[399559631,1766487411920,-705.5,0.00044931,120]
[399559632,1766487411958,-500.0,0.00044931,120]
[399559633,1766487411995,-500.0,0.00044931,120]
[399559634,1766487412033,-1242.77,0.00044931,120]
[399559635,1766487412071,-500.0,0.00044931,120]
[399559636,1766487412109,-500.0,0.00044931,120]
[399559637,1766487412153,-524.43316298,0.00044931,120]
[399559638,1766487412194,-500.0,0.00044931,120]
[399559639,1766487412238,-500.0,0.00044931,120]
[399559640,1766487412280,-500.0,0.00044931,120]
[399559641,1766487412323,-500.0,0.00044931,120]
[399559642,1766487412362,-500.0,0.00044931,120]
[399559643,1766487412400,-636.03,0.00044931,120]
[399559644,1766487412440,-500.0,0.00044931,120]
[399559645,1766487412480,-500.0,0.00044931,120]
[399559646,1766487412520,-500.0,0.00044931,120]
[399559647,1766487412559,-1402.13,0.00044931,120]
[399559648,1766487412596,-1997.32,0.00044931,120]
[399559649,1766487412634,-500.0,0.00044931,120]
[399559650,1766487412670,-500.0,0.00044931,120]
[399559651,1766487412712,-500.0,0.00044931,120]
[399559652,1766487412749,-500.0,0.00044931,120]
[399559653,1766487412787,-500.0,0.00044931,120]
[399559654,1766487412823,-1364.75,0.00044931,60]
[399559655,1766487412860,-500.0,0.00044931,120]
[399559656,1766487412897,-766.62,0.00044931,120]
[399559657,1766487412935,-500.0,0.00044931,120]
[399559658,1766487412974,-525.71103585,0.00044931,120]
[399559659,1766487413012,-500.0,0.00044931,120]
[399559660,1766487413054,-500.0,0.00044931,120]
[399559661,1766487413103,-839.95,0.00044931,120]
[399559662,1766487413146,-500.0,0.00044931,120]
[399559663,1766487413185,-500.0,0.00044931,120]
[399559664,1766487413228,-522.41,0.00044931,120]
[399559665,1766487413270,-500.0,0.00044931,120]
[399559666,1766487413314,-500.0,0.00044931,120]
[399559667,1766487413358,-500.0,0.00044931,120]
[399559668,1766487413401,-500.0,0.00044931,120]
[399559669,1766487413442,-500.0,0.00044931,120]
[399559670,1766487413482,-408.61683542,0.00044931,120]
[399559671,1766487413520,-500.0,0.00044931,120]
[399559672,1766487413558,-642.74,0.00044931,120]
[399559673,1766487413598,-500.0,0.00044931,120]
[399559674,1766487413636,-500.0,0.00044931,120]
[399559675,1766487413676,-500.0,0.00044931,120]
[399559676,1766487413715,-500.0,0.00044931,120]
[399559677,1766487413752,-331.80838448,0.00044931,120]
[399559678,1766487413792,-500.0,0.00044931,120]
[399559679,1766487413833,-500.0,0.00044931,120]
[399559680,1766487413873,-500.0,0.00044931,120]
[399559681,1766487413911,-500.0,0.00044931,120]
[399559682,1766487413959,-500.0,0.00044931,120]
[399559683,1766487414000,-500.0,0.00044931,120]
[399559684,1766487414043,-500.0,0.00044931,120]
[399559685,1766487414086,-500.0,0.00044931,120]
[399559686,1766487414133,-500.0,0.00044931,120]
[399559687,1766487414179,-1016.98,0.00044931,120]
[399559688,1766487414224,-500.0,0.00044931,120]
[399559689,1766487414269,-500.0,0.00044931,120]
[399559690,1766487414314,-566.15,0.00044931,120]
[399559691,1766487414358,-500.0,0.00044931,120]
[399559692,1766487414402,-500.0,0.00044931,120]
[399559693,1766487414444,-500.0,0.00044931,120]
[399559694,1766487414486,-567.85,0.00044931,120]
[399559695,1766487414532,-500.0,0.00044931,120]
[399559696,1766487414573,-500.0,0.00044931,120]
[399559697,1766487414611,-514.68119479,0.00044931,120]
[399559698,1766487414650,-500.0,0.00044931,120]
[399559699,1766487414688,-500.0,0.00044931,120]
[399559700,1766487414724,-500.0,0.00044931,120]
[399559701,1766487414761,-500.0,0.00044931,120]
[399559702,1766487414797,-500.0,0.00044931,120]
[399559703,1766487415026,-620.27776702,0.00044931,120]
[399559704,1766487415074,-500.0,0.00044931,120]
[399559705,1766487415118,-500.0,0.00044931,120]
[399559706,1766487415163,-1210.55,0.00044931,120]
[399559707,1766487415208,-1710.74,0.00044931,120]
[399559708,1766487415253,-500.0,0.00044931,120]
[399559709,1766487415296,-1312.95,0.00044931,120]
[399559710,1766487415338,-1224.52,0.00044931,120]
[399559711,1766487415377,-1696.75,0.00044931,120]
[399559712,1766487415415,-500.0,0.00044931,120]
[399559713,1766487415452,-500.0,0.00044931,120]
[399559714,1766487415490,-500.0,0.00044931,120]
[399559715,1766487415528,-500.0,0.00044931,120]
[399559716,1766487415564,-531.45770033,0.00044931,120]
[399559717,1766487415602,-557.62,0.00044931,120]
[399559718,1766487415640,-526.92,0.00044931,120]
[399559719,1766487415677,-500.0,0.00044931,120]
[399559720,1766487415716,-500.0,0.00044931,120]
[399559721,1766487415754,-500.0,0.00044931,120]
[399559722,1766487415794,-1297.54,0.00044931,120]
[399559723,1766487415834,-555.83,0.00044931,120]
[399559724,1766487415872,-174.17185965,0.00044931,120]
[399559725,1766487415911,-322.37672064,0.00044931,120]
[399559726,1766487415948,-500.0,0.00044931,120]
[399559727,1766487415987,-500.0,0.00044931,120]
[399559728,1766487416027,-873.07,0.00044931,120]
[399559729,1766487416070,-500.0,0.00044931,120]
[399559730,1766487416110,-604.78,0.00044931,120]
[399559731,1766487416151,-2639.11,0.00044931,120]
[399559732,1766487416194,-600.1,0.00044931,120]
[399559733,1766487416239,-500.0,0.00044931,120]
[399559734,1766487416284,-500.0,0.00044931,120]
[399559735,1766487416328,-500.0,0.00044931,120]
[399559736,1766487416371,-500.0,0.00044931,120]
[399559737,1766487416411,-622.5,0.00044931,120]
[399559738,1766487416452,-500.0,0.00044931,120]
[399559739,1766487416492,-500.0,0.00044931,120]
[399559740,1766487416531,-500.0,0.00044931,120]
[399559741,1766487416568,-567.72,0.00044931,120]
[399559742,1766487416607,-500.0,0.00044931,120]
[399559743,1766487416644,-2830.44,0.00044931,120]
[399559744,1766487416681,-592.25,0.00044931,120]
[399559745,1766487416717,-509.61618907,0.00044931,120]
[399559746,1766487416755,-711.79,0.00044931,120]
[399559747,1766487416792,-500.0,0.00044931,120]
[399559748,1766487416830,-500.0,0.00044931,120]
[399559749,1766487416869,-500.0,0.00044931,120]
[399559750,1766487416910,-619.91,0.00044931,120]
[399559751,1766487416950,-500.0,0.00044931,120]
[399559752,1766487416989,-500.0,0.00044931,120]
[399559753,1766487417028,-580.69,0.00044931,120]
[399559754,1766487417069,-500.0,0.00044931,60]
[399559755,1766487417109,-865.33,0.00044931,120]
[399559756,1766487417147,-478.07009664,0.00044931,120]
[399559757,1766487417187,-500.0,0.00044931,120]
[399559758,1766487417230,-500.0,0.00044931,120]
[399559759,1766487417272,-500.0,0.00044931,120]
[399559760,1766487417316,-500.0,0.00044931,120]
[399559761,1766487417355,-409.69667177,0.00044931,120]
[399559762,1766487417394,-500.0,0.00044931,120]
[399559763,1766487417434,-865.61,0.00044931,120]
[399559764,1766487417473,-500.0,0.00044931,120]
[399559765,1766487417512,-500.0,0.00044931,120]
[399559766,1766487417551,-1432.6,0.00044931,120]
[399559767,1766487417589,-500.0,0.00044931,120]
[399559768,1766487417632,-500.0,0.00044931,120]
[399559769,1766487417675,-500.0,0.00044931,120]
[399559770,1766487417720,-893.55,0.00044931,120]
[399559771,1766487417760,-500.0,0.00044931,120]
[399559772,1766487417798,-500.0,0.00044931,120]
[399559773,1766487417834,-1688.71,0.00044931,120]
[399559774,1766487417870,-500.0,0.00044931,120]
[399559775,1766487417906,-905.29,0.00044931,120]
[399559776,1766487417942,-377.97130069,0.00044931,120]
[399559777,1766487417979,-632.22,0.00044931,120]
[399559778,1766487418016,-500.0,0.00044931,120]
[399559779,1766487418054,-592.93,0.00044931,120]
[399559780,1766487418100,-500.0,0.00044931,120]
[399559781,1766487418142,-519.34,0.00044931,120]
[399559782,1766487418184,-697.2,0.00044931,120]
[399559783,1766487418228,-1835.93,0.00044931,120]
[399559784,1766487418272,-878.66,0.00044931,120]
[399559785,1766487418313,-500.0,0.00044931,120]
[399559786,1766487418355,-500.0,0.00044931,120]
[399559787,1766487418396,-913.04,0.00044931,120]
[399559788,1766487418438,-500.0,0.00044931,120]
[399559789,1766487418478,-389.99877461,0.00044931,120]
[399559790,1766487418516,-500.0,0.00044931,120]
[399559791,1766487418554,-751.1,0.00044931,120]
[399559792,1766487418592,-500.0,0.00044931,120]
[399559793,1766487418629,-500.0,0.00044931,120]
[399559794,1766487418666,-500.0,0.00044931,120]
[399559795,1766487418706,-1075.62,0.00044931,60]
[399559796,1766487418742,-361.02520146,0.00044931,120]
[399559797,1766487418778,-500.0,0.00044931,120]
[399559798,1766487419031,-1328.41,0.00044931,120]
[399559799,1766487419074,-500.0,0.00044931,120]
[399559800,1766487419116,-500.0,0.00044931,120]
[399559801,1766487419156,-500.0,0.00044931,120]
[399559802,1766487419197,-500.0,0.00044931,120]
[399559803,1766487419239,-599.0,0.00044931,120]
[399559804,1766487419280,-886.86,0.00044931,120]
[399559805,1766487419319,-500.0,0.00044931,120]
[399559806,1766487419356,-500.0,0.00044931,120]
[399559807,1766487419394,-500.0,0.00044931,120]
[399559808,1766487419431,-500.0,0.00044931,120]
[399559809,1766487419470,-560.74,0.00044931,120]
[399559810,1766487419507,-500.0,0.00044931,120]
[399559811,1766487419544,-500.0,0.00044931,120]
[399559812,1766487419581,-1433.05,0.00044931,120]
[399559813,1766487419616,-500.0,0.00044931,120]
[399559814,1766487419652,-335.35392101,0.00044931,120]
[399559815,1766487419690,-500.0,0.00044931,120]
[399559816,1766487419728,-500.0,0.00044931,120]
[399559817,1766487419763,-500.0,0.00044931,120]
[399559818,1766487419800,-2265.89,0.00044931,120]
[399559819,1766487419836,-2082.47,0.00044931,120]
[399559820,1766487419871,-500.0,0.00044931,120]
[399559821,1766487419908,-1141.51,0.00044931,120]
[399559822,1766487419945,-1850.23,0.00044931,120]
[399559823,1766487419982,-500.0,0.00044931,120]
[399559824,1766487420019,-1211.32,0.00044931,120]
[399559825,1766487420058,-1291.8,0.00044931,120]
[399559826,1766487420103,-819.42,0.00044931,120]
[399559827,1766487420145,-2579.35,0.00044931,120]
[399559828,1766487420187,-500.0,0.00044931,120]
[399559829,1766487420231,-500.0,0.00044931,120]
[399559830,1766487420275,-500.0,0.00044931,120]
[399559831,1766487420315,-500.0,0.00044931,120]
[399559832,1766487420357,-1083.91,0.00044931,120]
[399559833,1766487420397,-500.0,0.00044931,120]
[399559834,1766487420438,-2453.97,0.00044931,120]
[399559835,1766487420480,-1697.27,0.00044931,120]
[399559836,1766487420518,-1279.54,0.00044931,120]
[399559837,1766487420556,-500.0,0.00044931,120]
[399559838,1766487420596,-500.0,0.00044931,120]
[399559839,1766487420637,-730.24,0.00044931,120]
[399559840,1766487420673,-614.83374909,0.00044931,120]
[399559841,1766487420712,-150.52096034,0.00044931,120]
[399559842,1766487420749,-500.0,0.00044931,120]
[399559843,1766487420786,-500.0,0.00044931,120]
[399559844,1766487420823,-500.0,0.00044931,120]
[399559845,1766487420860,-500.0,0.00044931,120]
[399559846,1766487420897,-500.0,0.00044931,120]
[399559847,1766487420934,-500.0,0.00044931,120]
[399559848,1766487420973,-751.57,0.00044931,120]
[399559849,1766487421010,-1053.31,0.00044931,120]
[399559850,1766487421049,-516.65,0.00044931,120]
[399559851,1766487421090,-513.62418051,0.00044931,120]
[399559852,1766487421128,-500.0,0.00044931,120]
[399559853,1766487421168,-500.0,0.00044931,120]
[399559854,1766487421210,-500.0,0.00044931,120]
[399559855,1766487421254,-847.16,0.00044931,120]
[399559856,1766487421299,-1188.06,0.00044931,120]
[399559857,1766487421341,-500.0,0.00044931,120]
[399559858,1766487421380,-626.28,0.00044931,120]
[399559859,1766487421421,-500.0,0.00044931,120]
[399559860,1766487421459,-500.0,0.00044931,120]
[399559861,1766487421498,-500.0,0.00044931,120]
[399559862,1766487421536,-523.6579332,0.00044931,120]
[399559863,1766487421572,-500.0,0.00044931,120]
[399559864,1766487421609,-1482.2,0.00044931,120]
[399559865,1766487421647,-500.0,0.00044931,120]
[399559866,1766487421683,-570.04,0.00044931,120]
[399559867,1766487421720,-612.78,0.00044931,120]
[399559868,1766487421756,-192.06730512,0.00044931,120]
[399559869,1766487421791,-500.0,0.00044931,120]
[399559870,1766487421827,-500.0,0.00044931,120]
[399559871,1766487421866,-332.40698008,0.00044931,120]
[399559872,1766487421905,-1255.16,0.00044931,120]
[399559873,1766487421944,-1932.35,0.00044931,120]
[399559874,1766487421982,-500.0,0.00044931,120]
[399559875,1766487422019,-1678.76,0.00044931,120]
[399559876,1766487422056,-500.0,0.00044931,120]
[399559877,1766487422097,-500.0,0.00044931,120]
[399559878,1766487422136,-1569.44,0.00044931,120]
[399559879,1766487422180,-500.0,0.00044931,120]
[399559880,1766487422224,-1870.13,0.00044931,120]
[399559881,1766487422268,-500.0,0.00044931,120]
[399559882,1766487422310,-500.0,0.00044931,120]
[399559883,1766487422353,-500.0,0.00044931,120]
[399559884,1766487422394,-500.0,0.00044931,120]
[399559885,1766487422435,-500.0,0.00044931,120]
[399559886,1766487422475,-500.0,0.00044931,120]
[399559887,1766487422514,-500.0,0.00044931,120]
[399559888,1766487422552,-500.0,0.00044931,120]
[399559889,1766487422589,-500.0,0.00044931,120]
[399559890,1766487422624,-500.0,0.00044931,120]
[399559891,1766487422662,-500.0,0.00044931,120]
[399559892,1766487422698,-2182.76,0.00044931,120]
[399559893,1766487422937,-500.0,0.00044931,120]
[399559894,1766487422979,-500.0,0.00044931,120]
[399559895,1766487423019,-1062.94,0.00044931,120]
[399559896,1766487423059,-500.0,0.00044931,120]
[399559897,1766487423103,-500.0,0.00044931,120]
[399559898,1766487423145,-500.0,0.00044931,120]
[399559899,1766487423189,-500.0,0.00044931,60]
[399559900,1766487423233,-500.0,0.00044931,120]
[399559901,1766487423278,-500.0,0.00044931,120]
[399559902,1766487423321,-500.0,0.00044931,120]
[399559903,1766487423364,-500.0,0.00044931,120]
[399559904,1766487423405,-500.0,0.00044931,120]
[399559905,1766487423451,-500.0,0.00044931,120]
[399559906,1766487423492,-503.44,0.00044931,120]
[399559907,1766487423533,-500.0,0.00044931,120]
[399559908,1766487423576,-595.91,0.00044931,120]
[399559909,1766487423616,-500.0,0.00044931,120]
[399559910,1766487423656,-811.74,0.00044931,120]
[399559911,1766487423695,-500.0,0.00044931,120]
[399559912,1766487423733,-500.0,0.00044931,120]
[399559913,1766487423773,-650.99,0.00044931,120]
[399559914,1766487423813,-500.0,0.00044931,120]
[399559915,1766487423853,-500.0,0.00044931,120]
[399559916,1766487423892,-500.0,0.00044931,120]
[399559917,1766487423932,-500.0,0.00044931,120]
[399559918,1766487423970,-1388.3,0.00044931,120]
[399559919,1766487424009,-500.0,0.00044931,120]
[399559920,1766487424049,-500.0,0.00044931,120]
[399559921,1766487424100,-500.0,0.00044931,120]
[399559922,1766487424157,-500.0,0.00044931,120]
[399559923,1766487424203,-689.37,0.00044931,120]
[399559924,1766487424249,-1432.96,0.00044931,120]
[399559925,1766487424295,-1562.05,0.00044931,120]
[399559926,1766487424341,-500.0,0.00044931,120]
[399559927,1766487424386,-1196.29,0.00044931,120]
[399559928,1766487424430,-500.0,0.00044931,120]
[399559929,1766487424473,-1708.74,0.00044931,120]
[399559930,1766487424515,-500.0,0.00044931,120]
[399559931,1766487424556,-172.68186968,0.00044931,120]
[399559932,1766487424596,-1298.55,0.00044931,120]
[399559933,1766487424636,-500.0,0.00044931,120]
[399559934,1766487424673,-1689.23,0.00044931,120]
[399559935,1766487424711,-500.0,0.00044931,120]
[399559936,1766487424749,-500.0,0.00044931,120]
[399559937,1766487424787,-1005.64,0.00044931,120]
[399559938,1766487424824,-500.0,0.00044931,60]
[399559939,1766487424861,-500.0,0.00044931,90]
[399559940,1766487424901,-10397.11,0.00044931,120]
[399559941,1766487424943,-765.9,0.00044931,120]
[399559942,1766487424983,-500.0,0.00044931,120]
[399559943,1766487425025,-500.0,0.00044931,120]
[399559944,1766487425072,-500.0,0.00044931,120]
[399559945,1766487425114,-1437.927834,0.00044931,120]
[399559946,1766487425160,-209.786308,0.00044931,120]
[399559947,1766487425204,-259.391101,0.00044931,120]
[399559948,1766487425247,-213.82803,0.00044931,120]
[399559949,1766487425291,-787.237658,0.00044931,120]
[399559950,1766487425331,-1663.38442,0.00044931,120]
[399559951,1766487425370,-393.61883,0.00044931,120]
[399559952,1766487425409,-474.89538745,0.00045,120]
[399559953,1766487425448,-379.65405288,0.00045,60]
[399559954,1766487425485,-300.0,0.00045,120]
[399559955,1766487425523,-1200.0,0.00045,120]
[399559956,1766487425561,-1077.42144102,0.00045,120]
[399559957,1766487425600,-593.15510097,0.00045,120]
[399559958,1766487425638,-1131.25418091,0.00045,120]
[399559959,1766487425679,-1009.00719045,0.00045,120]
[399559960,1766487425730,-176.0,0.00045,120]
[399559961,1766487425768,-223.0,0.00045,120]
[399559962,1766487425804,-521.0,0.00045,120]
[399559963,1766487425843,-411.0,0.00045,60]
[399559964,1766487425881,-753.6931876,0.00045,120]
[399559965,1766487425923,-337.65,0.00045,120]
[399559966,1766487425960,-500.0,0.00045,120]
[399559967,1766487426000,-174.52,0.00045,120]
[399559968,1766487426043,-2500.0,0.00045,120]
[399559969,1766487426083,-664.43,0.00045,120]
[399559970,1766487426126,-2666.0,0.00045,120]
[399559971,1766487426169,-1503.4262825,0.00045,120]
[399559972,1766487426215,-23133.0,0.00045,120]
[399559973,1766487426260,-2162.00237629,0.00045,120]
[399559974,1766487426304,-1586.33824132,0.00045,120]
[399559975,1766487426348,-1912.0,0.00045,120]
[399559976,1766487426390,-281.34,0.00045,120]
[399559977,1766487426431,-257.50461299,0.00045,120]
[399559978,1766487426472,-166.17,0.00045,120]
[399559979,1766487426514,-1132.32,0.00045,120]
[399559980,1766487426555,-2800.0,0.00045,120]
[399559981,1766487426596,-666.5,0.00045,120]
[399559982,1766487426636,-2552.57,0.00045,120]
[399559983,1766487426674,-590.85616495,0.00045045,120]
[399559984,1766487426713,-917.06,0.00045205,120]
[399559985,1766487426751,-646.32897417,0.00045205,120]
[399559986,1766487426788,-500.0,0.00045205,120]
[399559987,1766487427000,-500.0,0.00045205,120]
[399559988,1766487427050,-500.0,0.00045205,120]
[399559989,1766487427091,-500.0,0.00045205,120]
[399559990,1766487427132,-500.0,0.00045205,120]
[399559991,1766487427174,-500.0,0.00045205,120]
[399559992,1766487427217,-500.0,0.00045205,120]
[399559993,1766487427261,-500.0,0.00045205,120]
[399559994,1766487427305,-500.0,0.00045205,120]
[399559995,1766487427348,-500.0,0.00045205,120]
[399559996,1766487427388,-500.0,0.00045205,120]
[399559997,1766487427428,-500.0,0.00045205,120]
[399559998,1766487427469,-1369.07,0.00045205,120]
[399559999,1766487427508,-500.0,0.00045205,120]
[399560000,1766487427546,-500.0,0.00045205,120]
[399560001,1766487427584,-510.96453214,0.00045205,120]
[399560002,1766487427623,-500.0,0.00045205,120]
[399560003,1766487427660,-500.0,0.00045205,120]
[399560004,1766487427696,-756.38,0.00045205,120]
[399560005,1766487427734,-500.0,0.00045205,120]
[399560006,1766487427771,-500.0,0.00045205,120]
[399560007,1766487427808,-500.0,0.00045205,120]
[399560008,1766487427844,-500.0,0.00045205,120]
[399560009,1766487427881,-500.0,0.00045205,120]
[399560010,1766487427919,-500.0,0.00045205,120]
[399560011,1766487427956,-500.0,0.00045205,120]
[399560012,1766487427994,-500.0,0.00045205,120]
[399560013,1766487428031,-500.0,0.00045205,120]
[399560014,1766487428073,-500.0,0.00045205,120]
[399560015,1766487428114,-500.0,0.00045205,120]
[399560016,1766487428156,-251.92588264,0.00045205,120]
[399560017,1766487428199,-500.0,0.00045205,120]
[399560018,1766487428244,-500.0,0.00045205,120]
[399560019,1766487428288,-500.0,0.00045205,120]
[399560020,1766487428330,-500.0,0.00045205,120]
[399560021,1766487428372,-500.0,0.00045205,120]
[399560022,1766487428424,-500.0,0.00045205,120]
[399560023,1766487428469,-500.0,0.00045205,120]
[399560024,1766487428512,-253.45201478,0.00045205,120]
[399560025,1766487428553,-500.0,0.00045205,120]
[399560026,1766487428593,-500.0,0.00045205,120]
[399560027,1766487428634,-500.0,0.00045205,120]
[399560028,1766487428677,-500.0,0.00045205,120]
[399560029,1766487428719,-500.0,0.00045205,120]
[399560030,1766487428761,-500.0,0.00045205,120]
[399560031,1766487428802,-500.0,0.00045205,120]
[399560032,1766487428842,-500.0,0.00045205,120]
[399560033,1766487428883,-500.0,0.00045205,120]
[399560034,1766487428922,-500.0,0.00045205,120]
[399560035,1766487428960,-500.0,0.00045205,120]
[399560036,1766487428999,-526.15700846,0.00045205,120]
[399560037,1766487429038,-500.0,0.00045205,120]
[399560038,1766487429076,-500.0,0.00045205,120]
[399560039,1766487429115,-500.0,0.00045205,120]
[399560040,1766487429156,-500.0,0.00045205,120]
[399560041,1766487429197,-419.00050973,0.00045205,120]